bitfinex/quotes_ETHUSD_20250803
["timestamp","ask_amount","ask_price","bid_price","bid_amount"]
[1754258254127,0.454,3510.9,3510.8,4.953]
[1754258254323,0.454,3510.9,3510.8,0.631]
[1754258254532,0.454,3510.9,3510.8,4.952]
[1754258254838,0.454,3510.9,3510.8,4.4634]
[1754258255746,0.001,3510.9,3510.8,4.4634]
[1754258255917,0.001,3510.9,3510.8,4.9521]
[1754258256113,0.001,3510.9,3510.8,4.4634]
[1754258257549,0.001,3510.9,3510.8,0.1424]
[1754258257850,0.001,3510.9,3510.8,4.4624]
[1754258264590,0.001,3510.9,3510.8,4.9511]
[1754258264953,0.001,3510.9,3510.8,4.4624]
[1754258268292,0.001,3510.9,3510.8,4.4584]
[1754258268901,0.4422,3510.9,3510.8,4.4584]
[1754258270787,0.4422,3510.9,3510.8,0.1424]
[1754258270951,0.8945,3510.9,3510.8,4.4574]
[1754258271151,0.4422,3510.9,3510.8,4.4574]
[1754258271452,3.8945,3510.9,3510.7,0.1424]
[1754258271692,3.001,3510.9,3510.3,6.846]
[1754258271992,0.1424,3510.8,3510.4,4.319]
[1754258272169,0.1424,3510.8,3510.3,6.9884]
[1754258272370,0.8935,3510.7,3510.4,4.32]
[1754258272565,16.81902474,3510.6,3510.4,4.32]
[1754258272758,3.8935,3510.5,3510.4,4.32]
[1754258272953,3.8935,3510.5,3510.4,4.319]
[1754258273159,3.0,3510.5,3510.4,4.319]
[1754258273391,3.8935,3510.5,3510.4,4.319]
[1754258273761,0.8935,3510.5,3510.4,4.319]
[1754258274594,3.8935,3510.5,3510.4,4.319]
[1754258282476,3.4412,3510.5,3510.4,4.319]
[1754258283080,3.8974,3510.5,3510.4,4.319]
[1754258283775,3.4412,3510.5,3510.4,4.319]
[1754258286329,3.0,3510.5,3510.4,4.319]
[1754258286490,3.4741,3510.5,3510.4,4.319]
[1754258289609,0.001,3510.9,3510.4,4.7799]
[1754258289610,0.1424,3510.8,3510.4,4.7799]
[1754258289814,0.001,3510.9,3510.5,0.6033]
[1754258290313,0.001,3510.9,3510.6,0.4609]
[1754258290484,0.001,3510.9,3510.7,0.1424]
[1754258290881,0.001,3510.9,3510.8,0.4609]
[1754258294985,0.001,3510.9,3510.7,0.1424]
[1754258295208,0.001,3510.9,3510.8,0.6033]
[1754258296821,0.001,3510.9,3510.8,0.8507]
[1754258300990,0.001,3510.9,3510.8,0.6033]
[1754258305151,1.9051,3510.9,3510.0,0.002]
[1754258305442,3.0,3510.2,3510.0,0.1444]
[1754258305827,0.4741,3510.1,3510.0,0.1444]
[1754258306611,0.4741,3510.1,3510.0,4.4874]
[1754258306919,0.4741,3510.1,3510.0,0.1444]
[1754258307132,0.9303,3510.1,3510.0,0.1444]
[1754258307308,2.20981054,3510.1,3510.0,4.4864]
[1754258310810,1.75361054,3510.1,3510.0,4.4864]
[1754258311655,1.75361054,3510.1,3510.0,0.1444]
[1754258311812,2.23421054,3510.1,3510.0,4.342]
[1754258312972,5.78421054,3510.1,3510.0,0.002]
[1754258313426,18.92552474,3509.7,3509.6,0.1444]
[1754258313612,18.92552474,3509.7,3509.6,0.002]
[1754258313940,19.98612474,3509.7,3509.6,0.002]
[1754258314540,3.0,3509.6,3508.9,4.347]
[1754258314839,18.92552474,3509.0,3508.9,4.347]
[1754258315345,19.84372474,3509.0,3508.9,4.347]
[1754258316916,19.36312474,3509.0,3508.9,4.347]
[1754258317546,19.84372474,3509.0,3508.9,4.347]
[1754258318521,3.0,3508.9,3508.7,4.345]
[1754258318726,1.0606,3508.8,3508.7,4.345]
[1754258319515,0.58,3508.8,3508.7,4.345]
[1754258320650,0.1424,3508.8,3508.7,4.345]
[1754258320947,3.0,3508.9,3508.7,4.9702]
[1754258321310,3.0,3508.9,3508.7,4.4874]
[1754258321548,3.0,3508.9,3508.8,0.4828]
[1754258323361,7.05,3509.7,3508.8,1.93666]
[1754258323567,0.4376,3509.9,3508.9,0.4828]
[1754258323568,3.0,3509.8,3508.9,0.4828]
[1754258323736,3.0,3509.8,3508.9,0.7302]
[1754258323940,3.0,3509.8,3509.4,0.1424]
[1754258324141,3.0,3509.8,3509.5,4.349]
[1754258324555,3.0,3509.8,3509.6,0.4828]
[1754258327653,3.4376,3509.8,3509.6,0.4828]
[1754258328466,3.4376,3509.8,3509.5,4.349]
[1754258328682,3.4376,3509.8,3509.5,4.8318]
[1754258329166,3.0,3509.8,3509.5,4.349]
[1754258329368,3.0,3509.5,3508.8,0.4828]
[1754258329673,3.0,3509.5,3508.4,0.858785]
[1754258329674,3.0,3509.1,3509.0,0.1424]
[1754258329850,3.0,3509.1,3509.0,4.346]
[1754258330170,3.9182,3509.1,3509.0,4.346]
[1754258330376,3.9182,3509.1,3508.7,0.1424]
[1754258330574,3.9182,3509.1,3509.0,4.348]
[1754258330575,3.0,3509.1,3509.0,4.348]
[1754258330797,3.0,3509.1,3508.7,0.1424]
[1754258331071,3.0,3509.1,3508.9,4.347]
[1754258331250,0.9182,3509.0,3508.4,0.002]
[1754258331574,0.9182,3509.0,3508.5,4.347]
[1754258331875,0.9182,3508.9,3508.5,4.347]
[1754258332237,0.9182,3508.8,3508.5,4.4894]
[1754258332538,0.4376,3508.7,3508.5,4.4894]
[1754258332739,0.4376,3508.6,3508.5,4.4894]
[1754258333393,0.9182,3508.6,3508.4,4.348]
[1754258333541,0.4376,3508.6,3508.5,4.347]
[1754258333885,3.1424,3508.7,3508.5,4.347]
[1754258334237,0.9182,3508.6,3508.5,4.347]
[1754258334739,0.9182,3508.6,3508.4,0.002]
[1754258334942,1.0606,3508.5,3508.4,4.349]
[1754258337083,0.58,3508.5,3508.4,4.349]
[1754258337453,0.1424,3508.5,3508.4,4.349]
[1754258337957,0.1424,3508.5,3508.4,4.8318]
[1754258338276,0.1424,3508.6,3508.4,4.8318]
[1754258338458,3.1424,3508.7,3508.4,4.8318]
[1754258339245,3.591,3508.7,3508.4,4.8318]
[1754258340594,3.591,3508.7,3508.4,4.349]
[1754258340887,3.591,3508.7,3508.5,0.4904]
[1754258344483,3.591,3508.7,3508.6,0.4904]
[1754258344683,3.1424,3508.7,3508.6,0.4904]
[1754258344888,0.1424,3508.7,3508.6,0.4904]
[1754258345067,3.591,3508.9,3508.6,0.4904]
[1754258345387,3.1424,3508.9,3508.7,0.4904]
[1754258345592,3.1424,3508.9,3508.4,4.4914]
[1754258345797,3.1424,3508.9,3508.8,0.4904]
[1754258346590,3.0,3508.9,3508.8,0.4904]
[1754258346762,3.1424,3509.3,3508.8,0.6328]
[1754258347087,3.1424,3509.3,3508.9,0.4904]
[1754258347262,3.591,3509.3,3508.9,0.4904]
[1754258347470,3.591,3509.3,3509.0,0.4904]
[1754258347471,3.1424,3509.3,3509.0,0.4904]
[1754258347667,3.591,3509.3,3509.0,0.4904]
[1754258347868,0.1424,3509.3,3508.8,4.4854]
[1754258348074,7.051,3509.8,3509.1,0.4904]
[1754258348075,0.001,3509.8,3509.1,0.4904]
[1754258348392,0.001,3509.8,3509.2,0.1424]
[1754258348604,0.001,3509.8,3509.5,0.1424]
[1754258349102,0.001,3509.8,3509.6,0.4904]
[1754258349605,0.001,3509.8,3509.7,0.4904]
[1754258350791,0.001,3509.8,3509.5,0.1424]
[1754258351091,0.001,3509.8,3509.7,0.6328]
[1754258358877,0.001,3509.8,3509.7,0.1424]
[1754258359082,0.4496,3509.8,3509.7,0.1424]
[1754258359299,0.001,3509.8,3509.7,0.1424]
[1754258361689,0.001,3509.8,3509.7,0.6328]
[1754258363696,0.4496,3509.8,3509.7,0.1424]
[1754258372231,0.9023,3509.8,3509.7,4.4774]
[1754258372707,0.9023,3509.8,3509.7,4.335]
[1754258373128,16.37632474,3509.8,3508.7,6.851]
[1754258373278,15.92652474,3509.8,3509.5,0.1424]
[1754258373645,1.0437,3509.7,3509.2,0.1424]
[1754258373790,0.9013,3509.6,3509.2,4.4764]
[1754258373990,0.1424,3509.7,3509.2,4.4764]
[1754258374192,0.9013,3509.5,3509.2,4.4764]
[1754258374427,0.1424,3509.7,3509.2,4.4764]
[1754258374597,0.9013,3509.4,3509.2,4.4764]
[1754258374797,0.4498,3509.3,3509.2,4.4764]
[1754258375195,0.4498,3509.3,3509.2,4.334]
[1754258375504,1.0437,3509.3,3508.8,4.4774]
[1754258375696,0.9013,3509.2,3508.8,0.1424]
[1754258376097,0.9013,3509.1,3508.8,0.1424]
[1754258376328,0.1424,3509.3,3508.8,0.1424]
[1754258376628,0.9013,3509.0,3508.8,0.1424]
[1754258376833,0.1424,3509.3,3508.8,0.1424]
[1754258377135,0.9013,3508.9,3508.8,0.1424]
[1754258377294,0.9013,3508.9,3508.7,4.336]
[1754258377496,0.4498,3508.8,3508.7,4.4784]
[1754258377698,0.9013,3508.8,3508.7,4.4784]
[1754258379797,0.9013,3508.8,3508.7,4.336]
[1754258380106,0.4498,3508.8,3508.7,4.336]
[1754258380307,0.9013,3508.8,3508.7,4.336]
[1754258381306,0.5922,3508.8,3508.4,0.002]
[1754258381505,0.9013,3508.7,3508.4,0.002]
[1754258381922,0.4498,3508.6,3508.4,0.002]
[1754258383612,0.4498,3508.5,3508.4,0.002]
[1754258384932,0.1424,3508.8,3508.4,0.002]
[1754258385132,0.4498,3508.5,3508.4,0.002]
[1754258386995,0.1424,3508.8,3508.4,0.002]
[1754258387201,0.4498,3508.7,3508.4,0.002]
[1754258387602,0.4498,3508.7,3508.4,0.481]
[1754258387840,0.5939,3508.8,3508.4,0.481]
[1754258388138,0.4498,3508.6,3508.4,0.481]
[1754258388537,0.4498,3508.6,3508.4,0.002]
[1754258388749,0.4498,3508.6,3508.5,0.479]
[1754258389056,0.4498,3508.6,3508.4,0.002]
[1754258389550,0.4498,3508.5,3508.4,0.002]
[1754258391949,0.4498,3508.5,3508.3,4.9354]
[1754258394550,0.1424,3508.8,3508.3,4.4564]
[1754258394713,0.5922,3508.8,3508.4,0.479]
[1754258394915,0.1424,3508.9,3508.5,0.479]
[1754258395115,0.1424,3508.9,3508.6,4.331]
[1754258395510,0.1424,3508.9,3508.7,0.479]
[1754258396962,0.5922,3508.9,3508.8,0.479]
[1754258397458,0.1424,3508.9,3508.6,4.331]
[1754258397757,0.1424,3509.1,3508.7,0.479]
[1754258397963,0.5922,3509.1,3508.7,0.479]
[1754258398258,0.1424,3509.1,3508.8,0.479]
[1754258398465,0.4498,3509.0,3508.8,0.479]
[1754258400253,0.85417,3509.0,3508.8,0.479]
[1754258400454,0.1424,3509.1,3508.6,4.331]
[1754258400653,0.37534574,3510.2,3508.9,0.4605]
[1754258400654,0.001,3510.2,3508.9,0.4605]
[1754258400888,0.001,3510.9,3508.9,0.4605]
[1754258400889,0.4539,3510.6,3508.9,0.4605]
[1754258401177,0.4638,3510.8,3509.1,3.0]
[1754258401336,0.4638,3510.8,3508.3,16.87515186]
[1754258401337,15.92552474,3510.4,3509.2,4.8005]
[1754258401520,0.9177,3510.3,3509.3,4.8005]
[1754258401723,15.92552474,3510.0,3508.8,0.4605]
[1754258401925,15.92552474,3510.0,3509.0,0.4605]
[1754258402144,0.9177,3509.9,3508.9,4.343]
[1754258402456,15.92552474,3510.0,3508.9,4.343]
[1754258402661,0.9177,3509.8,3508.9,4.343]
[1754258402857,15.92552474,3509.6,3508.9,4.8035]
[1754258403163,0.9177,3509.5,3508.9,4.8035]
[1754258403353,0.4539,3510.0,3509.0,0.4605]
[1754258403679,3.0,3510.3,3509.0,0.4605]
[1754258403828,3.4539,3510.3,3509.1,0.2474]
[1754258404251,3.4539,3510.3,3509.2,0.4605]
[1754258404638,3.4539,3510.3,3509.3,0.2474]
[1754258404834,3.4539,3510.3,3509.4,4.8055]
[1754258405058,3.4539,3510.3,3509.5,0.4605]
[1754258405433,0.4539,3510.3,3509.5,0.4605]
[1754258405772,0.55,3511.0,3509.5,0.7079]
[1754258405773,7.344,3511.0,3509.5,0.7079]
[1754258405923,0.4539,3510.7,3509.6,0.2474]
[1754258406276,0.39187,3510.7,3509.7,0.4605]
[1754258406478,0.39187,3510.7,3509.8,0.2474]
[1754258406631,0.4549,3510.9,3509.9,0.4605]
[1754258406825,0.001,3510.9,3510.0,4.345]
[1754258407059,0.001,3510.9,3510.0,4.5924]
[1754258407239,0.001,3510.9,3510.1,0.4605]
[1754258407440,0.001,3510.9,3510.1,0.73638921]
[1754258407659,0.001,3510.9,3510.2,0.2474]
[1754258407866,0.001,3510.9,3510.3,0.02848759]
[1754258408370,0.001,3510.9,3510.4,0.7079]
[1754258408525,0.001,3510.9,3510.5,0.02848597]
[1754258408732,0.001,3510.9,3510.6,4.345]
[1754258408961,0.001,3510.9,3510.7,0.5081386]
[1754258409265,0.001,3510.9,3510.8,0.02848353]
[1754258409473,0.001,3510.9,3510.8,0.2474]
[1754258409840,0.001,3510.9,3510.8,0.7079]
[1754258410168,0.001,3510.9,3510.8,3.7079]
[1754258410374,0.001,3510.9,3510.8,4.85169506]
[1754258410673,0.001,3510.9,3510.8,4.99409506]
[1754258413867,0.001,3510.9,3510.8,4.74669506]
[1754258414806,0.001,3510.9,3510.8,0.1424]
[1754258415093,0.9187,3510.9,3510.8,4.343]
[1754258417187,0.9187,3510.9,3510.6,4.348]
[1754258417386,0.9177,3510.8,3510.5,4.348]
[1754258417551,0.9177,3510.7,3510.5,4.348]
[1754258417756,0.4638,3510.6,3510.5,4.348]
[1754258417948,0.9177,3510.6,3510.5,4.348]
[1754258423677,0.4539,3510.6,3510.5,4.348]
[1754258425107,0.1424,3510.8,3510.5,4.348]
[1754258425423,0.001,3510.9,3510.6,0.4605]
[1754258425571,0.001,3510.9,3510.7,0.1424]
[1754258425773,0.001,3510.9,3510.7,0.6029]
[1754258425974,0.001,3510.9,3510.7,0.1424]
[1754258426201,0.001,3510.9,3510.8,0.4605]
[1754258431124,0.001,3510.9,3510.8,0.7079]
[1754258431517,0.001,3510.9,3510.8,0.4605]
[1754258433324,0.001,3510.9,3510.8,0.48898353]
[1754258433618,0.001,3510.9,3510.8,0.73638353]
[1754258433784,0.001,3510.9,3510.8,7.123836]
[1754258436619,0.001,3510.9,3510.8,11.917336]
[1754258437393,0.001,3510.9,3510.8,9.06898235]
[1754258439125,0.001,3510.9,3510.8,11.917336]
[1754258439494,0.001,3510.9,3510.8,11.669936]
[1754258439705,0.001,3510.9,3510.8,11.917336]
[1754258442313,0.001,3510.9,3510.8,11.669936]
[1754258442720,0.001,3510.9,3510.8,11.917336]
[1754258443294,0.001,3510.9,3510.8,11.669936]
[1754258443802,0.001,3510.9,3510.8,8.36108235]
[1754258443998,0.001,3510.9,3510.8,8.85028235]
[1754258445235,0.4515,3510.9,3510.8,8.36108235]
[1754258446501,0.001,3510.9,3510.8,4.01808235]
[1754258446702,0.9185,3510.9,3510.8,8.35608235]
[1754258447006,0.9185,3510.9,3510.8,7.90558235]
[1754258447327,0.9185,3510.9,3510.8,7.338]
[1754258448125,0.9185,3510.9,3510.8,4.338]
[1754258449499,0.9185,3510.9,3510.3,0.002]
[1754258449700,0.9175,3510.8,3510.6,0.1424]
[1754258449947,0.001,3510.9,3510.7,4.34]
[1754258450636,0.9175,3510.8,3510.7,4.34]
[1754258456521,0.9175,3510.8,3510.4,4.4824]
[1754258456707,0.9175,3510.7,3510.4,4.4824]
[1754258456913,0.9175,3510.6,3510.4,4.4824]
[1754258457112,0.467,3510.6,3510.4,4.4824]
[1754258457312,0.4505,3510.5,3510.4,4.4824]
[1754258459236,0.1434,3510.9,3510.4,4.4824]
[1754258459428,0.4546,3510.7,3510.4,4.4824]
[1754258459629,0.4546,3510.6,3510.4,4.4824]
[1754258459842,0.1434,3510.9,3510.4,4.4824]
[1754258460026,0.4546,3510.8,3510.4,4.4824]
[1754258460209,0.4546,3510.7,3510.4,4.4824]
[1754258460416,0.4546,3510.7,3510.5,0.4519]
[1754258460615,0.4546,3510.6,3510.5,0.4519]
[1754258460816,0.4546,3510.6,3510.4,4.4824]
[1754258461051,0.4546,3510.6,3510.4,4.9343]
[1754258462124,0.1434,3510.9,3510.4,4.4824]
[1754258462330,0.4546,3510.8,3510.5,0.4519]
[1754258463231,0.4546,3510.8,3510.4,4.4824]
[1754258463552,0.4546,3510.7,3510.4,4.9343]
[1754258464415,0.4546,3510.7,3510.5,0.4519]
[1754258465249,0.598,3510.9,3510.5,0.4519]
[1754258465548,0.4546,3510.8,3510.4,4.4774]
[1754258465751,0.461,3510.7,3510.4,4.4774]
[1754258466058,0.4546,3510.6,3510.4,4.4774]
[1754258466218,0.461,3510.5,3510.4,4.4774]
[1754258466416,0.9156,3510.5,3510.4,4.4774]
[1754258470357,0.001,3510.9,3510.4,4.4774]
[1754258470524,0.001,3510.9,3510.5,0.4519]
[1754258470841,0.4546,3510.8,3510.5,0.4519]
[1754258471152,0.4546,3510.7,3510.5,0.4519]
[1754258471932,0.001,3511.3,3510.5,0.4519]
[1754258471933,0.001,3511.3,3510.8,2.84835365]
[1754258472117,1.49620459,3512.9,3511.3,0.55]
[1754258472321,1.49620459,3512.9,3511.5,3.0]
[1754258472522,1.49620459,3512.9,3511.7,3.0]
[1754258472759,1.49620459,3512.9,3512.2,3.0]
[1754258473070,1.49620459,3512.9,3512.2,8.42390406]
[1754258473218,1.49620459,3512.9,3512.2,9.09373188]
[1754258475089,0.4546,3513.3,3512.2,9.09373188]
[1754258475452,0.4546,3513.3,3512.2,9.3099344]
[1754258475860,0.4546,3513.7,3512.2,12.15715266]
[1754258476058,0.4546,3513.4,3512.2,13.6576008]
[1754258476262,15.92552474,3514.2,3512.2,13.6576008]
[1754258476485,0.4546,3513.2,3512.2,13.6576008]
[1754258476783,0.4546,3513.2,3512.2,13.7717188]
[1754258477097,0.4546,3513.7,3512.2,13.7717188]
[1754258477471,0.4546,3513.5,3512.2,13.7717188]
[1754258479000,0.4546,3514.2,3512.2,14.3217188]
[1754258479205,4.371,3515.3,3512.2,14.3217188]
[1754258479206,0.4546,3513.7,3512.2,14.3217188]
[1754258480212,8.67053282,3515.4,3512.5,0.55]
[1754258480213,0.4546,3514.3,3512.5,0.55]
[1754258480498,0.4546,3514.3,3512.7,22.46473773]
[1754258480853,0.4546,3514.3,3512.7,23.16303773]
[1754258482157,0.4546,3514.6,3512.7,23.16303773]
[1754258482358,0.4546,3514.4,3512.7,23.16303773]
[1754258482599,0.4546,3514.4,3512.7,23.61763773]
[1754258482804,1.82253282,3515.4,3513.0,3.39656988]
[1754258483114,0.4546,3514.7,3513.0,12.20403022]
[1754258483426,0.4546,3514.7,3513.0,13.01626453]
[1754258483992,0.4546,3514.7,3513.0,13.71085354]
[1754258484388,0.4546,3514.5,3513.0,13.71085354]
[1754258485006,0.461,3514.8,3513.0,13.71085354]
[1754258485214,0.4546,3514.7,3513.0,13.71085354]
[1754258485425,0.4546,3514.7,3514.1,2.84564573]
[1754258485728,0.4546,3514.7,3514.2,4.369]
[1754258485898,0.461,3514.6,3514.3,4.368]
[1754258486092,0.4546,3514.5,3514.3,4.368]
[1754258486297,0.9156,3514.4,3513.2,2.86824707]
[1754258486532,0.9156,3514.3,3513.3,7.21424963]
[1754258486828,0.4546,3514.2,3513.6,2.84602301]
[1754258487027,0.4546,3514.2,3513.7,7.66789226]
[1754258487244,0.9156,3514.5,3514.1,0.1424]
[1754258487443,0.9156,3514.5,3514.2,4.37]
[1754258487643,0.4546,3514.4,3514.2,5.225462]
[1754258487951,0.461,3514.5,3514.4,0.1424]
[1754258488108,0.461,3514.5,3514.2,5.225462]
[1754258488435,0.4546,3514.4,3514.3,0.1424]
[1754258488647,1.82253282,3515.4,3514.3,0.1424]
[1754258488814,0.4546,3514.8,3514.4,4.369]
[1754258489015,0.4723,3514.7,3514.4,4.369]
[1754258489337,0.461,3515.0,3514.7,0.1424]
[1754258489541,0.18225328,3515.3,3514.8,4.37]
[1754258489831,0.4577,3514.9,3514.8,4.37]
[1754258490030,0.20047861,3515.2,3514.8,4.37]
[1754258490246,0.20047861,3515.2,3514.8,4.5124]
[1754258490247,0.4723,3514.9,3514.8,4.5124]
[1754258490804,0.4723,3514.9,3514.8,4.9847]
[1754258491006,1.82253282,3515.4,3514.8,4.8423]
[1754258491209,0.4723,3515.6,3514.9,0.50825031]
[1754258491444,0.4723,3515.6,3514.9,0.4798]
[1754258492009,0.93,3515.6,3514.9,0.4798]
[1754258492210,0.4723,3515.5,3514.9,0.4798]
[1754258492402,0.4223,3515.5,3514.9,0.4798]
[1754258493634,0.4577,3515.4,3515.0,0.85523]
[1754258493833,0.4577,3515.4,3515.1,4.369]
[1754258494348,0.93,3515.3,3515.1,4.369]
[1754258494540,0.93,3515.2,3515.0,0.85523]
[1754258494744,0.55,3516.3,3515.1,4.367]
[1754258494926,0.55,3516.3,3514.3,0.4798]
[1754258494927,0.55,3516.3,3515.2,4.367]
[1754258495126,0.55,3516.4,3515.3,4.368]
[1754258495323,0.93,3516.3,3515.3,4.368]
[1754258495646,0.93,3516.2,3515.3,4.368]
[1754258495943,0.93,3516.1,3515.2,4.368]
[1754258496131,1.323,3516.0,3514.4,0.855377]
[1754258496332,0.93,3515.9,3514.5,4.37]
[1754258496535,0.93,3515.8,3514.5,4.37]
[1754258496752,0.93,3515.7,3514.5,4.37]
[1754258497046,0.93,3515.6,3514.5,4.37]
[1754258497247,0.93,3515.5,3514.6,0.50825273]
[1754258497433,0.4577,3515.5,3514.6,0.50825273]
[1754258497762,0.4723,3515.4,3514.6,0.4798]
[1754258498918,0.4723,3515.7,3514.6,0.4798]
[1754258499114,0.001,3515.8,3514.9,0.55]
[1754258499336,0.001,3515.8,3515.4,2.84462537]
[1754258499548,0.001,3515.8,3515.5,4.37]
[1754258500059,0.001,3515.8,3515.6,0.4798]
[1754258500434,0.001,3515.8,3515.7,0.4798]
[1754258501253,0.001,3515.8,3515.7,0.6222]
[1754258503360,0.001,3515.8,3515.7,1.0945]
[1754258504433,0.001,3515.8,3515.7,1.64095]
[1754258504640,0.001,3515.8,3515.7,1.66939383]
[1754258505173,0.001,3515.8,3515.7,1.19709383]
[1754258505510,0.001,3515.8,3515.7,1.16865]
[1754258505692,0.001,3515.8,3515.7,1.46505]
[1754258506208,0.001,3515.8,3515.7,4.85943376]
[1754258506508,0.001,3515.8,3515.7,2.01505]
[1754258506704,0.001,3515.8,3515.7,1.71865]
[1754258506866,0.001,3515.8,3515.7,1.16865]
[1754258507065,0.001,3515.8,3515.7,1.19709383]
[1754258507600,0.001,3515.8,3515.7,1.16865]
[1754258508884,0.001,3515.8,3515.7,1.38123251]
[1754258510899,0.001,3515.8,3515.7,1.93123251]
[1754258511099,0.001,3515.8,3515.7,2.22763251]
[1754258511300,0.001,3515.8,3515.7,5.07201627]
[1754258511468,0.001,3515.8,3515.7,2.22763251]
[1754258511666,0.001,3515.8,3515.7,5.07201627]
[1754258514509,0.001,3515.8,3515.7,4.77561627]
[1754258515312,0.001,3515.8,3515.7,5.07201627]
[1754258515607,0.001,3515.8,3515.7,4.77561627]
[1754258517098,0.001,3515.8,3515.7,9.43201627]
[1754258517490,0.001,3515.8,3515.7,9.13561627]
[1754258520722,0.001,3515.8,3515.7,12.43201627]
[1754258521393,0.001,3515.8,3515.7,12.28961627]
[1754258521578,0.001,3516.2,3516.1,6.39406018]
[1754258521779,0.58210442,3517.3,3517.1,2.84320106]
[1754258521780,0.11380442,3517.3,3517.1,2.84320106]
[1754258522018,0.11380442,3517.3,3517.2,8.2489024]
[1754258522241,0.11380442,3517.3,3517.2,25.12521029]
[1754258522527,1e-08,3517.3,3517.2,10.7561707]
[1754258522741,0.4653,3519.3,3518.6,2.84202641]
[1754258523036,0.4653,3519.3,3518.7,0.02841958]
[1754258523037,0.004,3519.3,3518.7,0.02841958]
[1754258523236,1e-08,3519.7,3518.7,2.84195867]
[1754258523382,0.9296,3520.3,3518.8,1.46051464]
[1754258523583,0.4683,3520.2,3518.9,3.7607]
[1754258523812,0.9296,3520.2,3519.1,3.0]
[1754258524015,0.4683,3520.1,3519.2,4.458]
[1754258524238,0.9296,3520.1,3519.2,4.458]
[1754258524383,0.9296,3520.0,3519.2,4.458]
[1754258524586,0.9296,3519.9,3519.2,4.358]
[1754258524801,0.9296,3519.8,3519.3,4.464]
[1754258524999,0.9296,3519.7,3519.4,4.464]
[1754258525200,0.9296,3519.6,3519.5,4.465]
[1754258527807,0.9296,3519.6,3519.0,4.466]
[1754258528006,0.9296,3519.5,3519.0,4.466]
[1754258528319,0.9296,3519.4,3518.6,6.836]
[1754258528626,0.9296,3519.3,3518.7,4.477]
[1754258528935,0.9296,3519.2,3518.4,4.482]
[1754258529111,0.9296,3519.1,3518.5,4.482]
[1754258529307,0.9296,3519.0,3518.5,4.482]
[1754258529507,0.16239942,3521.2,3517.3,6.833]
[1754258529508,0.9296,3518.9,3517.3,6.833]
[1754258529828,3.0,3519.8,3517.4,4.9463]
[1754258529829,0.9296,3518.8,3517.4,4.9463]
[1754258530029,3.0,3519.7,3517.5,4.48]
[1754258530030,0.9296,3518.7,3517.5,4.48]
[1754258530243,0.4683,3518.6,3517.6,0.02842847]
[1754258530452,0.4683,3518.6,3517.5,4.48]
[1754258530453,0.9296,3518.6,3517.5,4.48]
[1754258530630,0.3,3519.7,3517.5,4.48]
[1754258530954,1.2596,3519.6,3517.5,4.48]
[1754258531252,0.9296,3519.5,3517.5,4.48]
[1754258531422,0.1424,3519.0,3518.5,0.1424]
[1754258531623,0.9296,3518.9,3518.2,4.479]
[1754258531826,0.9296,3518.9,3517.4,0.4643]
[1754258531827,3.9296,3518.8,3517.5,4.478]
[1754258532056,40.0,3518.5,3517.5,4.478]
[1754258532227,0.9296,3518.7,3517.5,4.478]
[1754258532228,0.9296,3518.4,3517.5,4.478]
[1754258532430,0.9296,3518.3,3517.5,4.478]
[1754258532632,0.9296,3518.2,3517.5,4.478]
[1754258532835,0.9296,3518.1,3517.5,4.478]
[1754258533058,0.4683,3518.0,3517.5,4.478]
[1754258533260,0.4613,3518.0,3517.5,4.478]
[1754258533462,0.4683,3517.9,3517.5,4.478]
[1754258533646,3.0,3518.8,3517.6,4.486]
[1754258533647,0.4683,3517.8,3517.6,4.486]
[1754258533845,0.4613,3518.0,3517.6,4.486]
[1754258534052,0.4683,3517.7,3517.6,4.486]
[1754258534366,0.4683,3518.3,3517.6,5.42732847]
[1754258534521,0.4683,3518.3,3517.6,4.9503]
[1754258535866,0.001,3519.0,3517.6,4.9503]
[1754258535867,0.4683,3518.4,3517.6,4.486]
[1754258536080,0.9296,3518.4,3517.6,4.486]
[1754258538955,0.001,3519.0,3517.7,0.4643]
[1754258539144,0.4683,3518.8,3517.8,0.02842685]
[1754258539370,0.001,3519.0,3517.9,0.4643]
[1754258540473,0.001,3519.0,3518.1,2.84236417]
[1754258540636,0.001,3519.0,3518.2,4.481]
[1754258541172,0.001,3519.0,3518.3,0.02842281]
[1754258541350,0.001,3519.0,3518.3,0.49272281]
[1754258541780,0.001,3519.0,3518.9,0.1424]
[1754258542276,0.4693,3519.0,3518.9,0.1424]
[1754258543998,0.9306,3519.0,3518.2,4.481]
[1754258544296,0.4683,3518.9,3518.7,0.1424]
[1754258544498,0.9296,3518.9,3518.7,0.1424]
[1754258544697,0.4683,3518.8,3518.7,0.1424]
[1754258544877,0.9296,3518.8,3518.7,0.1424]
[1754258546106,0.4683,3518.8,3518.7,0.1424]
[1754258547570,0.9296,3518.8,3518.7,0.1424]
[1754258548505,0.9296,3518.8,3517.3,0.2964]